bitfinex-derivatives/quotes_BTCF0:USTF0_20241020
["timestamp","ask_amount","ask_price","bid_price","bid_amount"]
[1729385350884,0.0002,68301.0,68300.0,0.07521]
[1729385352575,0.0002,68301.0,68300.0,0.16975965]
[1729385354676,0.3608,68305.0,68303.0,0.073206]
[1729385354877,0.3608,68305.0,68303.0,0.28033313]
[1729385355174,0.3608,68305.0,68303.0,1.42782408]
[1729385355780,0.3608,68305.0,68303.0,1.54016724]
[1729385356179,0.3608,68305.0,68303.0,0.9883177]
[1729385356376,0.3608,68305.0,68303.0,1.07598711]
[1729385358178,0.3608,68305.0,68303.0,0.9883177]
[1729385358785,0.3608,68305.0,68303.0,1.0219177]
[1729385358983,0.3608,68305.0,68303.0,0.4219177]
[1729385359482,0.3608,68305.0,68303.0,1.0219177]
[1729385359789,0.3608,68305.0,68303.0,0.92767443]
[1729385361484,0.3608,68305.0,68303.0,0.85446843]
[1729385361786,0.073192,68317.0,68305.0,0.073204]
[1729385362085,0.073192,68317.0,68316.0,0.073192]
[1729385363181,0.3608,68318.0,68317.0,0.073191]
[1729385363486,0.00219642,68319.0,68318.0,0.07319]
[1729385363679,0.073176,68332.0,68329.0,0.073178]
[1729385364185,0.073176,68332.0,68330.0,0.073177]
[1729385367088,0.02618889,68334.0,68330.0,0.073177]
[1729385367383,0.31520344,68336.0,68331.0,0.073176]
[1729385367594,0.36156,68339.0,68338.0,0.073169]
[1729385367779,0.3608,68339.0,68338.0,0.073169]
[1729385368176,0.3608,68339.0,68333.0,0.11111281]
[1729385368375,0.3608,68339.0,68335.0,0.073172]
[1729385368586,0.073167,68340.0,68335.0,0.073172]
[1729385370085,0.02582761,68343.0,68335.0,0.073172]
[1729385370283,0.073168,68339.0,68335.0,0.073172]
[1729385380788,0.02582761,68343.0,68334.0,0.0002]
[1729385380789,0.073172,68335.0,68334.0,0.0002]
[1729385380989,0.073372,68335.0,68334.0,0.0002]
[1729385382693,0.073372,68335.0,68324.0,0.10970936]
[1729385382694,0.1120403,68335.0,68324.0,0.10970936]
[1729385382897,0.1120403,68335.0,68324.0,0.18289336]
[1729385382898,0.0002,68325.0,68324.0,0.18289336]
[1729385383104,0.08999142,68325.0,68324.0,0.18289336]
[1729385383303,0.04509571,68325.0,68324.0,1.44019176]
[1729385383497,0.13488713,68325.0,68324.0,1.44019176]
[1729385383901,0.13488713,68325.0,68324.0,1.35003176]
[1729385384101,0.13215967,68325.0,68324.0,1.44015176]
[1729385384297,0.08207181,68325.0,68324.0,1.44015176]
[1729385386002,0.08207181,68325.0,68324.0,1.47505176]
[1729385387507,0.08207181,68325.0,68324.0,0.87505176]
[1729385388205,0.13212309,68325.0,68324.0,0.87505176]
[1729385388806,0.08207181,68325.0,68324.0,0.87505176]
[1729385389004,0.0002,68325.0,68324.0,0.87505176]
[1729385389206,0.13221097,68325.0,68324.0,0.87505176]
[1729385389809,0.0002,68325.0,68324.0,1.05662482]
[1729385390205,0.0002,68335.0,68324.0,0.64188852]
[1729385390411,0.0002,68335.0,68333.0,0.073174]
[1729385390813,0.073373,68335.0,68333.0,0.073174]
[1729385391003,0.073373,68335.0,68334.0,0.05841886]
[1729385391203,0.073373,68335.0,68333.0,0.073174]
[1729385391403,0.0002,68334.0,68333.0,0.073174]
[1729385392210,0.0002,68334.0,68333.0,0.16726256]
[1729385393515,0.0002,68334.0,68333.0,0.16736193]
[1729385394113,0.073373,68334.0,68333.0,0.09418793]
[1729385397702,0.03797082,68334.0,68330.0,0.073177]
[1729385398018,0.23296404,68332.0,68330.0,0.073177]
[1729385398206,0.13156108,68331.0,68330.0,0.073177]
[1729385398406,0.13176108,68331.0,68330.0,0.073177]
[1729385398807,0.20493708,68331.0,68330.0,0.073177]
[1729385399412,0.13176108,68331.0,68329.0,0.3608]
[1729385399616,0.20493908,68330.0,68329.0,0.3608]
[1729385399913,0.20493908,68330.0,68329.0,0.433979]
[1729385400415,0.20493908,68330.0,68329.0,0.3608]
[1729385400719,0.20493908,68330.0,68323.0,0.00076]
[1729385400720,0.073184,68324.0,68323.0,0.24381332]
[1729385400909,0.15500851,68324.0,68323.0,0.24381332]
[1729385401111,0.20494508,68324.0,68323.0,0.24381332]
[1729385403220,0.20494508,68324.0,68322.0,0.073186]
[1729385403419,0.13176108,68323.0,68322.0,0.073186]
[1729385403816,0.20494608,68323.0,68322.0,0.073186]
[1729385404815,0.073385,68323.0,68322.0,0.24194745]
[1729385405608,0.073385,68323.0,68322.0,0.14638567]
[1729385406620,0.073385,68323.0,68322.0,0.073186]
[1729385412717,0.15102013,68323.0,68322.0,0.073186]
[1729385412912,0.1984929,68323.0,68322.0,0.073186]
[1729385413119,0.15102013,68323.0,68322.0,0.073186]
[1729385415835,0.15114025,68323.0,68322.0,0.073186]
[1729385417126,0.19866892,68323.0,68322.0,0.073186]
[1729385417516,0.073191,68317.0,68316.0,0.3608]
[1729385417725,0.073193,68316.0,68315.0,0.00219577]
[1729385417922,0.15182938,68316.0,68315.0,0.00219577]
[1729385418115,0.18780974,68316.0,68315.0,0.00219577]
[1729385418323,0.23470576,68316.0,68315.0,0.00219577]
[1729385418522,0.18780974,68316.0,68315.0,0.00219577]
[1729385419828,0.110393,68316.0,68315.0,0.00219577]
[1729385420025,0.7274,68316.0,68312.0,0.0002]
[1729385420330,0.073396,68313.0,68312.0,0.05864818]
[1729385420635,0.073396,68313.0,68312.0,0.04401853]
[1729385421022,0.073396,68313.0,68312.0,0.0002]
[1729385421728,0.163596,68313.0,68312.0,0.0002]
[1729385423528,0.163596,68313.0,68312.0,0.04399207]
[1729385424237,0.163596,68313.0,68312.0,0.0002]
[1729385424636,0.163596,68313.0,68312.0,0.04398949]
[1729385424832,0.163596,68313.0,68312.0,0.0002]
[1729385426130,0.073396,68313.0,68312.0,0.0002]
[1729385426334,0.0002,68313.0,68312.0,0.073397]
[1729385426535,0.0002,68316.0,68312.0,0.1067]
[1729385426752,0.0002,68316.0,68315.0,0.073194]
[1729385426938,0.0002,68316.0,68315.0,0.24215143]
[1729385427140,0.0002,68323.0,68315.0,0.31439289]
[1729385427338,0.0002,68323.0,68320.0,0.073188]
[1729385427736,0.43786859,68321.0,68320.0,0.073188]
[1729385429740,0.07706859,68321.0,68320.0,0.073188]
[1729385431748,0.07734605,68321.0,68320.0,0.073188]
[1729385431943,0.03566262,68321.0,68320.0,0.073188]
[1729385432137,0.03566262,68322.0,68320.0,0.073188]
[1729385432341,0.07737435,68322.0,68320.0,0.073188]
[1729385433644,0.03566262,68321.0,68320.0,0.073188]
[1729385434241,0.03597147,68321.0,68320.0,0.073188]
[1729385434841,0.073385,68323.0,68320.0,0.073188]
[1729385438840,0.0002,68323.0,68318.0,0.3608]
[1729385439043,0.073389,68319.0,68318.0,0.3608]
[1729385439253,0.073389,68319.0,68315.0,0.0002]
[1729385439254,0.073191,68317.0,68315.0,0.0002]
[1729385439448,0.0002,68319.0,68315.0,0.0002]
[1729385439449,0.073393,68316.0,68315.0,0.0002]
[1729385442449,0.0002,68316.0,68315.0,0.073394]
[1729385444358,0.0002,68316.0,68315.0,0.24213424]
[1729385444659,0.0002,68316.0,68315.0,0.16915184]
[1729385445251,0.0002,68316.0,68315.0,0.20495184]
[1729385449762,0.0002,68316.0,68315.0,0.109194]
[1729385450160,0.12519347,68316.0,68315.0,0.109194]
[1729385450366,0.0002,68316.0,68315.0,0.109194]
[1729385450562,0.08924289,68316.0,68315.0,0.109194]
[1729385450862,0.0002,68316.0,68315.0,0.109194]
[1729385451555,0.12510193,68316.0,68315.0,0.109194]
[1729385453467,0.12518836,68316.0,68315.0,0.109194]
[1729385453965,0.0777466,68316.0,68315.0,0.109194]
[1729385455463,0.12515826,68316.0,68315.0,0.109194]
[1729385457071,0.12515826,68316.0,68315.0,0.073394]
[1729385457864,0.0002,68316.0,68315.0,0.28363724]
[1729385463971,0.0002,68319.0,68315.0,0.34312789]
[1729385464275,0.0002,68319.0,68318.0,0.07319]
[1729385464479,0.0002,68319.0,68318.0,0.28343324]
[1729385465175,0.0002,68319.0,68318.0,0.16911411]
[1729385465376,0.0002,68319.0,68318.0,0.28339896]
[1729385465678,0.0002,68319.0,68318.0,0.25694959]
[1729385469074,0.0002,68319.0,68318.0,0.16911411]
[1729385471481,0.0002,68319.0,68318.0,0.25694959]
[1729385471967,0.0002,68319.0,68318.0,0.16911411]
[1729385472571,0.0002,68319.0,68318.0,0.25694959]
[1729385472967,0.07778284,68319.0,68312.0,0.02718917]
[1729385473172,0.0002,68313.0,68312.0,0.10038617]
[1729385473371,0.07778284,68313.0,68312.0,0.10038617]
[1729385473575,0.12524677,68313.0,68312.0,0.31873632]
[1729385474774,0.12524677,68313.0,68312.0,0.34523627]
[1729385476375,0.12524677,68313.0,68312.0,0.38033627]
[1729385477780,0.28579125,68313.0,68312.0,0.38033627]
[1729385479968,0.0002,68313.0,68312.0,0.47706762]
[1729385480478,0.0002,68313.0,68312.0,0.47706056]
[1729385480879,0.0002,68313.0,68312.0,0.83786056]
[1729385481079,0.0002,68313.0,68312.0,0.9257316]
[1729385481584,0.0002,68313.0,68312.0,0.83786056]
[1729385482081,0.0002,68313.0,68312.0,0.92573081]
[1729385482674,0.0002,68313.0,68312.0,0.83786056]
[1729385483270,0.0002,68313.0,68312.0,0.92573081]
[1729385483787,0.0002,68313.0,68312.0,0.83786056]
[1729385483988,0.0002,68313.0,68312.0,0.92573081]
[1729385484176,0.0002,68313.0,68312.0,0.83786056]
[1729385484577,0.0002,68313.0,68312.0,0.92573081]
[1729385484886,0.0002,68313.0,68312.0,0.83786056]
[1729385487680,0.0002,68313.0,68312.0,0.95311807]
[1729385488084,0.03520653,68313.0,68312.0,0.74113627]
[1729385488479,0.12213268,68313.0,68312.0,0.74113627]
[1729385489892,0.12228846,68313.0,68312.0,0.74113627]
[1729385493484,0.12228846,68313.0,68312.0,1.78029627]
[1729385494694,0.0002,68313.0,68312.0,1.78029627]
[1729385494995,0.0002,68313.0,68312.0,1.99184866]
[1729385496286,0.0002,68313.0,68312.0,1.55268866]
[1729385499487,0.0002,68313.0,68312.0,1.55288709]
[1729385500094,0.0002,68313.0,68312.0,1.43773961]
[1729385500296,0.0002,68313.0,68312.0,0.83773961]
[1729385502991,0.08156401,68313.0,68312.0,0.74113627]
[1729385503203,0.03523907,68313.0,68312.0,0.74113627]
[1729385503692,0.12224581,68313.0,68312.0,0.74113627]
[1729385503900,0.12224581,68313.0,68312.0,1.34113627]
[1729385504193,0.0352984,68313.0,68312.0,0.74113627]
[1729385504394,0.07604929,68313.0,68312.0,0.74113627]
[1729385504595,0.0352984,68313.0,68312.0,0.74113627]
[1729385504984,0.12245267,68313.0,68312.0,0.74113627]
[1729385507394,0.19584288,68313.0,68312.0,0.74113627]
[1729385507695,0.28299715,68313.0,68312.0,1.10193627]
[1729385507891,0.12245267,68313.0,68312.0,1.10193627]
[1729385508583,0.12245267,68313.0,68312.0,0.98474423]
[1729385509392,0.12245267,68313.0,68312.0,1.05794123]
[1729385509801,0.19557921,68313.0,68312.0,1.05794123]
[1729385509991,0.16028081,68313.0,68312.0,1.40405665]
[1729385510989,0.16028081,68313.0,68312.0,1.28897873]
[1729385511396,0.16028081,68313.0,68312.0,1.15536788]
[1729385511787,0.16028081,68313.0,68312.0,1.30890103]
[1729385511995,0.16028081,68313.0,68312.0,1.40632766]
[1729385512194,0.16028081,68313.0,68312.0,1.75470236]
[1729385514001,0.16028081,68313.0,68312.0,1.40632766]
[1729385514998,0.16028081,68313.0,68312.0,1.37122766]
[1729385515195,0.16028081,68313.0,68312.0,1.46138766]
[1729385515603,0.16028081,68313.0,68312.0,1.37122766]
[1729385515798,0.16028081,68313.0,68312.0,1.71993131]
[1729385517007,0.16028081,68313.0,68312.0,1.37122766]
[1729385517207,0.02651426,68317.0,68316.0,0.073193]
[1729385517507,0.152691,68318.0,68316.0,0.073193]
[1729385518805,0.152691,68318.0,68317.0,0.073191]
[1729385520712,0.0795,68318.0,68317.0,0.073191]
[1729385520897,0.19741655,68318.0,68317.0,0.073191]
[1729385522394,0.19741655,68318.0,68313.0,0.073195]
[1729385522604,0.073395,68314.0,68313.0,0.073195]
[1729385523900,0.0002,68314.0,68313.0,0.073195]
[1729385526007,0.0002,68314.0,68313.0,0.17094824]
[1729385528599,0.0002,68314.0,68313.0,0.53174824]
[1729385529913,0.0002,68314.0,68313.0,0.17094824]
[1729385531203,0.0002,68314.0,68313.0,0.53174824]
[1729385531520,0.0002,68314.0,68313.0,0.6195864]
[1729385531909,0.0002,68314.0,68313.0,0.53174824]
[1729385532315,0.0002,68314.0,68313.0,0.6195864]
[1729385532511,0.0002,68314.0,68313.0,0.433995]
[1729385535801,0.0002,68314.0,68313.0,0.50711909]
[1729385536008,0.0002,68314.0,68313.0,0.433995]
[1729385536409,0.0002,68314.0,68313.0,0.50711909]
[1729385537522,0.0002,68314.0,68313.0,0.604801]
[1729385538422,0.0002,68314.0,68313.0,0.53167691]
[1729385538720,0.0002,68314.0,68313.0,0.60484283]
[1729385538913,0.0002,68314.0,68313.0,0.53167691]
[1729385540014,0.0002,68314.0,68313.0,0.53165887]
[1729385540518,0.07303368,68314.0,68313.0,0.433995]
[1729385540821,0.07303368,68314.0,68313.0,0.31679247]
[1729385541124,0.11796894,68314.0,68313.0,0.31679247]
[1729385541511,0.11796894,68314.0,68313.0,0.38998747]
[1729385547511,0.11796894,68314.0,68313.0,0.60504071]
[1729385547512,0.0002,68314.0,68313.0,0.60504071]
[1729385547920,0.0002,68314.0,68313.0,0.28824824]
[1729385555833,0.0002,68314.0,68313.0,0.24500636]
[1729385556623,0.0002,68314.0,68313.0,0.24501123]
[1729385557234,0.0002,68314.0,68313.0,0.17179105]
[1729385558121,0.0002,68314.0,68313.0,0.09859605]
[1729385558318,0.0002,68314.0,68313.0,0.07322489]
[1729385558525,0.0002,68314.0,68311.0,0.43442489]
[1729385558526,0.073197,68312.0,68311.0,0.43442489]
[1729385558727,0.073397,68312.0,68311.0,0.43442489]
[1729385558930,0.073397,68312.0,68311.0,0.3612]
[1729385559733,0.073397,68312.0,68311.0,0.0004]
[1729385559734,1.112557,68312.0,68311.0,0.0004]
[1729385560035,0.073204,68305.0,68302.0,0.14643189]
[1729385560232,0.073206,68304.0,68302.0,0.073207]
[1729385560528,0.0002,68303.0,68302.0,0.073207]
[1729385561419,0.0379,68303.0,68299.0,0.00219592]
[1729385561732,0.073409,68301.0,68299.0,0.00219592]
[1729385562729,0.10617584,68301.0,68299.0,0.00219592]
[1729385562930,0.073409,68301.0,68299.0,0.00219592]
[1729385563133,0.18916717,68301.0,68299.0,0.00219592]
[1729385563528,0.18919505,68301.0,68299.0,0.00219592]
[1729385564128,0.18919505,68301.0,68293.0,0.3608]
[1729385564129,1.22843505,68301.0,68293.0,0.434017]
[1729385564335,1.22843505,68301.0,68294.0,0.073216]
[1729385565634,1.22843505,68301.0,68296.0,0.073214]
[1729385566637,0.073213,68297.0,68296.0,0.073214]
[1729385566933,0.1442517,68297.0,68296.0,0.073214]
[1729385568228,0.07075224,68297.0,68292.0,0.3608]
[1729385568543,0.0002,68293.0,68292.0,0.434018]
[1729385568731,0.03284725,68293.0,68292.0,0.073218]
[1729385568934,0.07049449,68293.0,68292.0,0.073218]
[1729385569635,0.0002,68293.0,68292.0,0.17169025]
[1729385575333,0.0002,68293.0,68292.0,0.07296959]
[1729385575334,0.073417,68293.0,68292.0,0.07296959]
[1729385575535,0.073417,68293.0,68287.0,0.073223]
[1729385575536,1.03948,68293.0,68289.0,0.07296959]
[1729385575834,0.073221,68289.0,68287.0,0.07296959]
[1729385576037,0.0002,68288.0,68287.0,0.07296959]
[1729385576234,0.0002,68288.0,68287.0,0.17158499]
[1729385576646,0.0002,68288.0,68287.0,0.07296959]
[1729385577037,0.0002,68288.0,68287.0,0.14619359]
[1729385577242,0.0002,68288.0,68287.0,0.17194155]
[1729385577542,0.0002,68288.0,68287.0,0.24490378]
[1729385577746,0.0002,68288.0,68287.0,0.073224]
[1729385581644,0.073423,68288.0,68287.0,0.073224]
[1729385581843,0.073224,68287.0,68285.0,0.073226]
[1729385582034,0.0002,68286.0,68285.0,0.073226]
[1729385582234,0.073425,68286.0,68285.0,0.073226]
[1729385582541,0.073228,68284.0,68281.0,0.43376223]
[1729385582735,0.0002,68286.0,68280.0,0.07323]
[1729385582736,0.0002,68282.0,68280.0,0.07323]
[1729385583047,0.0002,68281.0,68280.0,0.07323]
[1729385583242,0.0002,68281.0,68278.0,0.07296223]
[1729385583435,0.0002,68279.0,68278.0,0.07296223]
[1729385583645,0.0002,68279.0,68278.0,0.14619523]
[1729385583841,0.0002,68279.0,68278.0,0.24523036]
[1729385584447,0.0002,68279.0,68278.0,0.14619523]
[1729385584649,0.0002,68279.0,68278.0,0.11702752]
[1729385586448,0.0002,68279.0,68278.0,0.073233]
[1729385587348,0.0002,68279.0,68278.0,0.1170373]
[1729385587548,0.0002,68279.0,68278.0,0.073233]
[1729385592760,0.03200302,68279.0,68278.0,0.04204142]
[1729385592959,0.11388553,68279.0,68278.0,0.04204142]
[1729385593857,0.11388553,68279.0,68278.0,0.26175442]
[1729385593858,0.19199624,68279.0,68278.0,0.26175442]
[1729385594056,0.11388553,68279.0,68278.0,0.26175442]
[1729385595169,0.27387875,68279.0,68278.0,0.26175442]
[1729385597472,0.04495545,68279.0,68278.0,1.30111442]
[1729385598888,0.0002,68281.0,68280.0,0.073231]
[1729385599270,0.0002,68281.0,68280.0,1.33207925]
[1729385599678,0.0002,68282.0,68281.0,0.07323]
[1729385599881,0.0002,68282.0,68281.0,0.82113174]
[1729385600087,0.0002,68282.0,68281.0,1.64161883]
[1729385603378,0.0002,68282.0,68281.0,1.04161883]
[1729385604275,0.0002,68282.0,68281.0,1.04298141]
[1729385604473,0.0002,68282.0,68281.0,0.63048408]
[1729385604883,0.0002,68282.0,68281.0,1.66984408]
[1729385605382,0.0002,68282.0,68281.0,0.63048408]
[1729385606373,0.0002,68282.0,68281.0,1.06984408]
[1729385606574,0.0002,68282.0,68281.0,0.63048408]
[1729385607283,0.0002,68282.0,68281.0,1.66984408]
[1729385607675,0.0002,68282.0,68281.0,1.06984408]
[1729385607882,0.03073043,68282.0,68281.0,0.85013976]
[1729385608181,0.03073043,68282.0,68281.0,0.41077976]
[1729385608383,0.0002,68282.0,68281.0,0.41077976]
[1729385608684,0.03073043,68282.0,68281.0,0.92057976]
[1729385608871,0.11154588,68282.0,68281.0,0.32057976]
[1729385612784,0.10954588,68282.0,68281.0,0.32057976]
[1729385614793,0.0002,68286.0,68281.0,0.60589098]
[1729385614978,0.0002,68286.0,68285.0,0.073226]
[1729385615181,0.0002,68286.0,68285.0,0.29299242]
[1729385615391,0.0002,68286.0,68285.0,0.39538212]
[1729385615584,0.0002,68286.0,68285.0,0.29299242]
[1729385622987,0.0002,68286.0,68285.0,0.17351992]
[1729385625495,0.0002,68286.0,68285.0,0.29319447]
[1729385628189,0.0002,68286.0,68285.0,0.17366062]
[1729385628388,0.0002,68286.0,68285.0,0.29337484]
[1729385629893,0.0002,68286.0,68284.0,0.31677958]
[1729385629894,0.06666967,68286.0,68284.0,0.31677958]
[1729385630088,0.11162177,68285.0,68284.0,0.31677958]
[1729385630502,0.11162177,68285.0,68284.0,0.53652665]
[1729385631383,0.11162177,68285.0,68284.0,0.60975365]
[1729385634694,0.27202196,68285.0,68284.0,0.60975365]
[1729385635893,0.27200888,68285.0,68284.0,0.60975365]
[1729385636101,0.11162177,68285.0,68284.0,0.60975365]
[1729385637192,0.14646965,68285.0,68284.0,0.60975365]
[1729385637398,0.11060644,68285.0,68284.0,0.60975365]
[1729385637990,0.073218,68292.0,68288.0,0.073222]
[1729385638195,0.073218,68292.0,68289.0,0.22193895]
[1729385638390,0.073218,68292.0,68290.0,0.22193895]
[1729385638594,0.073218,68292.0,68291.0,0.22193895]
[1729385641100,0.073218,68292.0,68291.0,0.29515795]
[1729385645808,0.073218,68292.0,68291.0,0.073219]
[1729385646114,0.073218,68292.0,68291.0,0.2950069]
[1729385647498,0.073218,68292.0,68291.0,0.32149092]
[1729385650610,0.073218,68292.0,68291.0,0.32147962]
[1729385653013,0.13876466,68292.0,68284.0,0.29943636]
[1729385653313,0.0002,68285.0,68284.0,0.37266336]
[1729385653505,0.02988353,68285.0,68284.0,0.37266336]
[1729385653814,0.11069866,68285.0,68284.0,0.59215017]
[1729385655510,0.11069866,68285.0,68284.0,0.61839847]
[1729385660026,0.073218,68292.0,68289.0,0.073221]
[1729385660212,0.073218,68292.0,68290.0,0.22263843]
[1729385660415,0.073218,68292.0,68291.0,0.22263843]
[1729385665221,0.073218,68292.0,68291.0,0.29694959]
[1729385665617,0.073218,68292.0,68291.0,0.32330954]
[1729385668022,0.18271366,68292.0,68284.0,0.28196843]
[1729385668229,0.0002,68285.0,68284.0,0.35519543]
[1729385668537,0.06474339,68285.0,68284.0,0.60202765]
[1729385668723,0.10969566,68285.0,68284.0,0.60202765]
[1729385674928,0.0002,68285.0,68284.0,0.96784717]
[1729385675124,0.073218,68292.0,68288.0,0.073222]
[1729385675327,0.073218,68292.0,68289.0,0.29776441]
[1729385675522,0.073218,68292.0,68290.0,0.10288148]
[1729385675728,0.073218,68292.0,68291.0,0.19081087]
[1729385675931,0.073218,68292.0,68291.0,0.10288148]
[1729385678326,0.073218,68292.0,68291.0,0.073219]
[1729385678530,0.073218,68292.0,68291.0,0.17611345]
[1729385680425,0.073218,68292.0,68291.0,0.20289198]
[1729385682636,0.073218,68292.0,68291.0,0.29080818]
[1729385682938,0.18232088,68292.0,68291.0,0.09999753]
[1729385689334,0.18232088,68292.0,68286.0,0.02265308]
[1729385689550,0.0002,68287.0,68286.0,0.09587808]
[1729385689738,0.06435143,68287.0,68286.0,0.09587808]
[1729385690045,0.0002,68287.0,68286.0,0.32218576]
[1729385691428,0.0002,68287.0,68286.0,0.34870346]
[1729385694043,0.0002,68287.0,68286.0,0.22605404]
[1729385694237,0.0002,68287.0,68286.0,0.34961071]
[1729385698036,0.10930161,68287.0,68286.0,0.12239578]
[1729385702253,0.10930119,68287.0,68286.0,0.12239578]
[1729385705152,0.073215,68295.0,68291.0,0.073219]
[1729385705454,0.073215,68295.0,68292.0,0.1916137]
[1729385705654,0.073215,68295.0,68293.0,0.10370022]
[1729385705844,0.073215,68295.0,68294.0,0.10370022]
[1729385707053,0.073215,68295.0,68294.0,0.10371242]
[1729385710956,0.073215,68295.0,68294.0,0.17692842]
[1729385711956,0.073215,68295.0,68294.0,0.25019272]
[1729385714153,0.073216,68294.0,68293.0,0.07326734]
[1729385714354,0.073217,68293.0,68292.0,0.07326734]
[1729385714559,0.073417,68293.0,68292.0,0.07326734]
[1729385714755,0.07322,68291.0,68288.0,0.0002]
[1729385715056,0.361,68289.0,68288.0,0.0002]
[1729385716146,0.361,68289.0,68288.0,0.073423]
[1729385717750,0.0002,68289.0,68288.0,0.073423]
[1729385720250,0.1102843,68289.0,68288.0,0.073423]
[1729385720957,0.1102843,68289.0,68288.0,0.04461369]
[1729385724853,0.16059918,68289.0,68288.0,0.04461369]
[1729385725157,0.1102843,68289.0,68288.0,0.04461369]
[1729385728263,0.0002,68289.0,68288.0,0.13252717]
[1729385729061,0.0002,68289.0,68288.0,0.23401965]
[1729385730864,0.0002,68289.0,68288.0,0.23400766]
[1729385731464,0.0002,68289.0,68288.0,0.14609418]
[1729385731659,0.0002,68289.0,68288.0,0.23394319]
[1729385732170,0.0002,68289.0,68288.0,0.14609418]
[1729385734370,0.0002,68289.0,68288.0,0.23394209]
[1729385737570,0.0002,68289.0,68288.0,0.14609418]
[1729385737777,0.0002,68289.0,68288.0,0.23394209]
[1729385738762,0.0002,68289.0,68288.0,0.14609418]
[1729385740469,0.0002,68289.0,68288.0,0.14618418]
[1729385741471,0.073421,68289.0,68288.0,0.14618418]
[1729385743163,0.073421,68289.0,68286.0,0.08784791]
[1729385743164,0.18336735,68289.0,68285.0,0.2883658]
[1729385743371,0.0002,68286.0,68285.0,0.3615918]
[1729385743566,0.02933005,68286.0,68285.0,0.3615918]
[1729385743767,0.11014635,68286.0,68285.0,0.3615918]
[1729385747765,0.11014635,68286.0,68285.0,0.073226]
[1729385750070,0.11048063,68286.0,68285.0,0.073226]
[1729385750274,0.08876785,68291.0,68287.0,0.073224]
[1729385750478,0.08876785,68291.0,68288.0,0.46493834]
[1729385750774,0.08876785,68291.0,68289.0,0.22215269]
[1729385750976,0.08876785,68291.0,68290.0,0.22215269]
[1729385754782,0.08876785,68291.0,68290.0,0.22140593]
[1729385755483,0.06212255,68291.0,68290.0,0.29462593]
[1729385757588,0.06212255,68291.0,68290.0,0.29467172]
[1729385758282,0.13690316,68291.0,68287.0,0.10252407]
[1729385758485,0.1106453,68290.0,68288.0,0.073223]
[1729385758674,0.1106453,68289.0,68288.0,0.073223]
[1729385759075,0.02982665,68289.0,68288.0,0.073223]
[1729385762193,0.1106453,68289.0,68288.0,0.073223]
[1729385763593,0.1106453,68289.0,68284.0,0.0002]
[1729385763903,0.34429686,68288.0,68285.0,0.073226]
[1729385764201,0.1106453,68287.0,68286.0,0.073225]
[1729385765198,0.073226,68285.0,68284.0,0.0002]
[1729385765398,0.073226,68285.0,68284.0,0.22308866]
[1729385765588,0.673426,68285.0,68284.0,0.22308866]
[1729385767398,0.073426,68285.0,68284.0,0.22308866]
[1729385767702,0.073426,68285.0,68284.0,0.29642105]
[1729385768802,0.0002,68285.0,68284.0,0.29642105]
[1729385769504,0.0002,68285.0,68284.0,0.39895322]
[1729385770206,0.073426,68285.0,68284.0,0.29642105]
[1729385770396,0.02945475,68285.0,68284.0,0.29642105]
[1729385772292,0.02945475,68285.0,68284.0,0.29556308]
[1729385773292,0.13966042,68285.0,68275.0,0.40096]
[1729385773500,0.16042856,68281.0,68276.0,0.073235]
[1729385773703,0.11020567,68280.0,68275.0,0.42725787]
[1729385774006,0.11020567,68280.0,68279.0,0.073232]
[1729385774209,0.27063423,68281.0,68275.0,0.42729787]
[1729385774504,0.0002,68276.0,68275.0,0.49973387]
[1729385775407,0.11040567,68276.0,68275.0,0.49973387]
[1729385777405,0.10979214,68276.0,68275.0,0.49973387]
[1729385780203,0.0002,68276.0,68275.0,1.02473213]
[1729385780403,0.16042856,68283.0,68281.0,0.073229]
[1729385780599,0.16042856,68283.0,68282.0,0.46691016]
[1729385781206,0.073227,68284.0,68282.0,0.46691016]
[1729385781411,0.073227,68284.0,68283.0,0.22337599]
[1729385782306,0.073227,68284.0,68283.0,0.32588005]
[1729385782702,0.073227,68284.0,68283.0,0.22337599]
[1729385783011,0.073227,68284.0,68283.0,0.32588005]
[1729385783398,0.073227,68284.0,68283.0,0.22337599]
[1729385784105,0.073227,68284.0,68283.0,0.46692688]
[1729385784312,0.073227,68284.0,68283.0,0.49291937]
[1729385785013,0.073227,68284.0,68283.0,0.49292762]
[1729385785217,0.073227,68284.0,68283.0,0.49292772]
[1729385785512,0.073227,68284.0,68283.0,0.39041531]
[1729385786613,0.073227,68284.0,68283.0,0.02599249]
[1729385786819,0.073227,68284.0,68283.0,0.36439144]
[1729385788311,0.13791159,68284.0,68280.0,0.1171475]
[1729385788506,0.0002,68281.0,68280.0,0.1903785]
[1729385788711,0.06488459,68281.0,68280.0,0.1903785]
[1729385788910,0.10984024,68281.0,68280.0,0.1903785]
[1729385790712,0.10984024,68281.0,68280.0,0.21697985]
[1729385791614,0.10984024,68281.0,68280.0,0.09983235]
[1729385792711,0.10984024,68281.0,68280.0,0.32021443]
[1729385795220,0.07322,68291.0,68288.0,0.073222]
[1729385795415,0.07322,68291.0,68289.0,0.26685869]
[1729385795622,0.07322,68291.0,68290.0,0.22465869]
[1729385799122,0.07322,68291.0,68290.0,0.10319488]
[1729385800020,0.07322,68291.0,68290.0,0.19104571]
[1729385800213,0.07322,68291.0,68290.0,0.19104542]
[1729385800520,0.11442,68291.0,68290.0,0.10319488]
[1729385800922,0.11442,68291.0,68290.0,0.19127065]
[1729385803529,0.073223,68288.0,68287.0,0.07321122]
[1729385803723,0.073423,68288.0,68286.0,0.07321122]
[1729385803924,0.073423,68288.0,68287.0,0.07321122]
[1729385805122,0.073423,68288.0,68287.0,0.17655535]
[1729385805625,0.073423,68288.0,68287.0,0.176546]
[1729385809133,0.073423,68288.0,68287.0,0.10333478]
[1729385809331,0.073423,68288.0,68287.0,0.1765505]
[1729385809827,0.073423,68288.0,68287.0,0.07321572]
[1729385810325,0.11837798,68288.0,68285.0,0.04674821]
[1729385810531,0.10911144,68287.0,68285.0,0.04674821]
[1729385810731,0.10931144,68286.0,68285.0,0.04674821]
[1729385812424,0.18253644,68286.0,68285.0,0.04674821]
[1729385815134,0.1825358,68286.0,68285.0,0.04674821]
[1729385817737,0.18253637,68286.0,68285.0,0.04674821]
[1729385818532,0.073425,68286.0,68285.0,0.15027438]
[1729385820039,0.073425,68286.0,68285.0,0.15027931]
[1729385821242,0.073425,68286.0,68285.0,0.27365715]